fUST/lending_fUST_20260107
["ID","MTS","AMOUNT","RATE_DAILY","PERIOD"]
[400698144,1767783038186,-500.0,0.00013697,2]
[400698146,1767783038196,-500.0,0.00013697,2]
[400698149,1767783038208,-450.0,0.00013697,2]
[400698151,1767783038218,-500.0,0.00013697,2]
[400698153,1767783038231,-500.0,0.00013697,2]
[400698155,1767783038241,-500.0,0.00013697,2]
[400698157,1767783038251,-500.0,0.00013697,2]
[400698159,1767783038261,-336.17092936,0.00013697,2]
[400698161,1767783038271,-500.0,0.00013697,2]
[400698163,1767783038281,-263.09618338,0.00013697,2]
[400698165,1767783038291,-500.0,0.00013697,2]
[400698167,1767783038300,-500.0,0.00013697,2]
[400698168,1767783038309,-500.0,0.00013697,2]
[400698170,1767783038319,-500.0,0.00013697,2]
[400698172,1767783038329,-500.0,0.00013697,2]
[400698174,1767783038338,-500.0,0.00013697,2]
[400698176,1767783038347,-500.0,0.00013697,2]
[400698179,1767783038358,-500.0,0.00013697,2]
[400698180,1767783038368,-500.0,0.00013697,2]
[400698182,1767783038378,-573.0661126,0.00013697,2]
[400698185,1767783038388,-500.0,0.00013697,2]
[400698206,1767783038590,-500.0,0.00013697,2]
[400698208,1767783038602,-500.0,0.00013697,2]
[400698211,1767783038613,-500.0,0.00013697,2]
[400698213,1767783038622,-500.0,0.00013697,2]
[400698215,1767783038632,-500.0,0.00013697,2]
[400698217,1767783038641,-500.0,0.00013697,2]
[400698219,1767783038650,-500.0,0.00013697,2]
[400698221,1767783038660,-500.0,0.00013697,2]
[400698223,1767783038670,-500.0,0.00013697,2]
[400698225,1767783038686,-1122.700529,0.00013699,2]
[400698226,1767783038706,-500.0,0.00013699,2]
[400698229,1767783038716,-500.0,0.00013699,2]
[400698230,1767783038725,-500.0,0.00013699,2]
[400698232,1767783038735,-500.0,0.00013699,2]
[400698235,1767783038745,-1000.0,0.00013821,2]
[400698236,1767783038754,-1000.0,0.00013821,2]
[400698239,1767783038764,-1000.0,0.00013821,2]
[400698241,1767783038774,-10000.0,0.0001386,2]
[400698243,1767783038783,-309.954,0.00014,2]
[400698245,1767783038793,-2259.83405697,0.00014,2]
[400698247,1767783038802,-300.0,0.00014096,2]
[400698249,1767783038811,-300.0,0.00014096,2]
[400698251,1767783038820,-300.0,0.00014096,2]
[400698252,1767783038837,-300.0,0.00014096,2]
[400698254,1767783038854,-300.0,0.00014096,2]
[400698257,1767783038864,-300.0,0.00014096,2]
[400698258,1767783038874,-300.0,0.00014096,2]
[400698260,1767783038883,-300.0,0.00014096,2]
[400698263,1767783038893,-300.0,0.00014096,2]
[400698264,1767783038904,-300.0,0.00014096,2]
[400698266,1767783038914,-300.0,0.00014096,2]
[400698268,1767783038929,-300.0,0.00014096,2]
[400698270,1767783038942,-300.0,0.00014096,2]
[400698273,1767783038954,-300.0,0.00014096,2]
[400698275,1767783038964,-300.0,0.00014096,2]
[400698277,1767783038976,-600.0,0.00014221,2]
[400698279,1767783038986,-1000.0,0.00014247,2]
[400698281,1767783038995,-502.70184396,0.00014247,2]
[400698283,1767783039005,-506.91111939,0.00014247,2]
[400698285,1767783039016,-1000.0,0.00014247,2]
[400698286,1767783039025,-1500.0,0.00014368,2]
[400698288,1767783039035,-1500.0,0.00014368,2]
[400698290,1767783039045,-1500.0,0.00014368,2]
[400698292,1767783039055,-600.0,0.0001453,2]
[400698294,1767783039065,-900.0,0.00014768,2]
[400698296,1767783039074,-1500.0,0.00014795,2]
[400698298,1767783039084,-1500.0,0.00014795,2]
[400698300,1767783039093,-100000.0,0.00014882,2]
[400698302,1767783039104,-254.45724115,0.00014893,2]
[400698304,1767783039114,-420.0,0.00014902,2]
[400698306,1767783039125,-488.76508845,0.00014914,2]
[400698308,1767783039141,-500.0,0.00014914,2]
[400698310,1767783039151,-500.0,0.00014914,2]
[400698312,1767783039161,-500.0,0.00014914,2]
[400698314,1767783039173,-578.56827334,0.00014914,2]
[400698316,1767783039183,-500.0,0.00014914,2]
[400698318,1767783039193,-500.0,0.00014914,2]
[400698320,1767783039205,-500.0,0.00014914,2]
[400698322,1767783039214,-500.0,0.00014914,2]
[400698324,1767783039224,-350.67836355,0.00014914,2]
[400698326,1767783039233,-500.0,0.00014914,2]
[400698328,1767783039243,-500.0,0.00014914,2]
[400698330,1767783039252,-500.0,0.00014914,2]
[400698332,1767783039263,-500.0,0.00014914,2]
[400698334,1767783039272,-500.0,0.00014914,2]
[400698336,1767783039282,-500.0,0.00014914,2]
[400698338,1767783039292,-500.0,0.00014914,2]
[400698340,1767783039302,-500.0,0.00014914,2]
[400698342,1767783039311,-651.58284827,0.00014914,2]
[400698344,1767783039321,-2000.0,0.00014916,2]
[400698346,1767783039331,-2000.0,0.00014916,2]
[400698348,1767783039340,-2000.0,0.00014916,2]
[400698350,1767783039349,-999.999999,0.00015,2]
[400698352,1767783039359,-800.0,0.00015068,2]
[400698354,1767783039369,-500.0,0.0001516,2]
[400698356,1767783039379,-500.0,0.0001516,2]
[400698358,1767783039388,-500.0,0.0001516,2]
[400698360,1767783039398,-500.0,0.0001516,2]
[400698362,1767783039407,-500.0,0.0001516,2]
[400698364,1767783039416,-500.0,0.0001516,2]
[400698366,1767783039426,-500.0,0.0001516,2]
[400698368,1767783039436,-500.0,0.0001516,2]
[400698370,1767783039445,-500.0,0.0001516,2]
[400698372,1767783039454,-427.91976094,0.0001516,2]
[400698374,1767783039464,-3123.63412852,0.00015216,2]
[400698376,1767783039472,-1200.0,0.00015316,2]
[400698378,1767783039482,-2000.0,0.00015342,2]
[400698380,1767783039491,-2000.0,0.00015342,2]
[400698382,1767783039500,-2500.0,0.00015464,2]
[400698384,1767783039509,-2500.0,0.00015464,2]
[400698386,1767783039518,-2500.0,0.00015464,2]
[400698388,1767783039527,-1203.39831266,0.00015864,2]
[400698390,1767783039536,-2500.0,0.0001589,2]
[400698392,1767783039545,-2500.0,0.0001589,2]
[400698394,1767783039555,-7858.0,0.00015939,2]
[400698396,1767783039564,-720.0,0.00015984,2]
[400698398,1767783039573,-774.29394276,0.00016012,2]
[400698400,1767783039582,-627.52709265,0.00016012,2]
[400698402,1767783039591,-3000.0,0.00016012,2]
[400698404,1767783039600,-1600.0,0.00016164,2]
[400698406,1767783039610,-587.0,0.00016332,2]
[400698408,1767783039619,-5211.09454943,0.00016378,2]
[400698410,1767783039628,-3000.0,0.00016438,2]
[400698412,1767783039636,-3000.0,0.00016438,2]
[400698414,1767783039646,-3500.0,0.0001656,2]
[400698416,1767783039655,-500.0,0.00016734,2]
[400698418,1767783039666,-500.0,0.00016734,2]
[400698420,1767783039675,-500.0,0.00016734,2]
[400698422,1767783039685,-536.0,0.00016734,2]
[400698424,1767783039694,-176.1819283,0.00016734,2]
[400698426,1767783039704,-500.0,0.00016734,2]
[400698428,1767783039713,-500.0,0.00016734,2]
[400698430,1767783039722,-261.88445837,0.00016871,2]
[400698432,1767783039731,-500.0,0.00016871,2]
[400698434,1767783039739,-500.0,0.00016871,2]
[400698436,1767783039748,-500.0,0.00016871,2]
[400698438,1767783039757,-536.0,0.00016871,2]
[400698440,1767783039767,-229.44903306,0.00016871,2]
[400698442,1767783039776,-500.0,0.00016871,2]
[400698444,1767783039786,-500.0,0.00016871,2]
[400698446,1767783039795,-293.27275252,0.00016893,2]
[400698448,1767783039805,-3500.0,0.00016986,2]
[400698450,1767783039814,-3500.0,0.00016986,2]
[400698452,1767783039823,-500.0,0.00017008,2]
[400698454,1767783039832,-500.0,0.00017008,2]
[400698456,1767783039841,-500.0,0.00017008,2]
[400698458,1767783039850,-200.0,0.00017008,2]
[400698459,1767783039859,-536.0,0.00017008,2]
[400698462,1767783039869,-500.0,0.00017008,2]
[400698463,1767783039878,-595.12568369,0.00017008,2]
[400698466,1767783039887,-4000.0,0.00017108,2]
[400698468,1767783039897,-500.0,0.00017145,2]
[400698469,1767783039906,-500.0,0.00017145,2]
[400698471,1767783039916,-500.0,0.00017145,2]
[400698473,1767783039926,-536.0,0.00017145,2]
[400698475,1767783039935,-266.491439,0.00017145,2]
[400698477,1767783039944,-2400.0,0.0001726,2]
[400698479,1767783039954,-500.0,0.00017282,2]
[400698481,1767783039963,-206.74458148,0.00017282,2]
[400698483,1767783039972,-621.60339535,0.00017282,2]
[400698485,1767783039981,-500.0,0.00017282,2]
[400698487,1767783039991,-536.0,0.00017282,2]
[400698489,1767783040000,-153.50612113,0.00017282,2]
[400698491,1767783040009,-500.0,0.00017419,2]
[400698493,1767783040018,-500.0,0.00017419,2]
[400698495,1767783040028,-536.0,0.00017419,2]
[400698496,1767783040038,-1882.05613913,0.00017534,2]
[400698497,1767783040047,-4000.0,0.00017534,2]
[400698498,1767783040056,-500.0,0.00017556,2]
[400698499,1767783040065,-500.0,0.00017556,2]
[400698500,1767783040073,-536.0,0.00017556,2]
[400698501,1767783040082,-864.0,0.00017582,2]
[400698502,1767783040091,-4500.0,0.00017656,2]
[400698503,1767783040100,-500.0,0.00017693,2]
[400698504,1767783040109,-364.24644296,0.00017693,2]
[400698505,1767783040118,-536.0,0.00017693,2]
[400698506,1767783040131,-500.0,0.0001783,2]
[400698507,1767783040141,-536.0,0.0001783,2]
[400698508,1767783040150,-823.0,0.000179,2]
[400698509,1767783040160,-500.0,0.00017967,2]
[400698510,1767783040170,-536.0,0.00017967,2]
[400698511,1767783040179,-4500.0,0.00018082,2]
[400698512,1767783040188,-500.0,0.00018104,2]
[400698513,1767783040198,-536.0,0.00018104,2]
[400698514,1767783040207,-3123.63412849,0.00018137,2]
[400698515,1767783040216,-5000.0,0.00018204,2]
[400698516,1767783040225,-500.0,0.00018241,2]
[400698517,1767783040235,-536.0,0.00018241,2]
[400698518,1767783040243,-802.30074464,0.00018356,2]
[400698519,1767783040253,-500.0,0.00018378,2]
[400698520,1767783040262,-536.0,0.00018378,2]
[400698521,1767783040270,-500.0,0.00018515,2]
[400698522,1767783040279,-536.0,0.00018515,2]
[400698523,1767783040289,-838.56279606,0.0001863,2]
[400698525,1767783040298,-302.47712024,0.00018652,2]
[400698527,1767783040307,-536.0,0.00018652,2]
[400698529,1767783040317,-5331.75246461,0.00018752,2]
[400698531,1767783040326,-536.0,0.00018789,2]
[400698533,1767783040335,-332.08826388,0.00018893,2]
[400698535,1767783040344,-536.0,0.00018926,2]
[400698537,1767783040354,-536.0,0.00019063,2]
[400698539,1767783040363,-5211.09454943,0.00019159,2]
[400698541,1767783040372,-352.8926,0.00019178,2]
[400698543,1767783040381,-352.8926,0.00019178,3]
[400698545,1767783040391,-352.8926,0.00019178,4]
[400698547,1767783040400,-352.8926,0.00019178,2]
[400698549,1767783040409,-352.8926,0.00019178,3]
[400698551,1767783040418,-352.8926,0.00019178,4]
[400698553,1767783040428,-352.8926,0.00019178,2]
[400698554,1767783040439,-352.8926,0.00019178,3]
[400698557,1767783040449,-352.8926,0.00019178,4]
[400698558,1767783040459,-352.8926,0.00019178,2]
[400698561,1767783040468,-352.8926,0.00019178,3]
[400698562,1767783040477,-352.8926,0.00019178,4]
[400698564,1767783040487,-352.8926,0.00019178,2]
[400698566,1767783040496,-352.8926,0.00019178,3]
[400698568,1767783040506,-352.8926,0.00019178,4]
[400698570,1767783040515,-352.8926,0.00019178,2]
[400698572,1767783040525,-352.8926,0.00019178,3]
[400698574,1767783040534,-350.9249,0.00019178,4]
[400698576,1767783040544,-900.0,0.00019178,2]
[400698578,1767783040554,-536.0,0.000192,2]
[400698580,1767783040563,-167.78,0.000192,2]
[400698582,1767783040573,-536.0,0.00019337,2]
[400698584,1767783040583,-1000.0,0.0001934,2]
[400698587,1767783040594,-536.0,0.00019474,2]
[400698588,1767783040603,-536.0,0.00019611,2]
[400698590,1767783040614,-694.0,0.00019619,2]
[400698592,1767783040626,-25963.54,0.000197,2]
[400698594,1767783040636,-221.31,0.000197,2]
[400698596,1767783040645,-2204.31,0.000197,2]
[400698598,1767783040654,-208.07,0.000197,2]
[400698600,1767783040664,-1549.57669197,0.00019726,2]
[400698602,1767783040673,-536.0,0.00019748,2]
[400698604,1767783040682,-550.00000003,0.00019885,2]
[400698606,1767783040692,-1972.0,0.0002,2]
[400698608,1767783040701,-181.25348447,0.0002,2]
[400698610,1767783040710,-255.0,0.0002011,3]
[400698612,1767783040722,-307.6,0.00020299,2]
[400698614,1767783040731,-1122.700529,0.00020548,2]
[400698616,1767783040741,-370.90377524,0.00020893,2]
[400698619,1767783040751,-500.71,0.00021,7]
[400698620,1767783040759,-3123.63412849,0.00021058,2]
[400698622,1767783040768,-1000.0,0.00021274,10]
[400698624,1767783040777,-244.0,0.00021274,10]
[400698626,1767783040786,-456.92,0.00021559,2]
[400698628,1767783040795,-307.6,0.00021859,2]
[400698630,1767783040805,-5211.09454943,0.00021939,2]
[400698632,1767783040814,-1751.06,0.00022,7]
[400698634,1767783040823,-2436.31932343,0.0002208,2]
[400698636,1767783040833,-228.43,0.000221,2]
[400698638,1767783040842,-1148.14949882,0.00022212,2]
[400698640,1767783040850,-2436.31932343,0.00022253,2]
[400698642,1767783040860,-168.0,0.00022301,7]
[400698644,1767783040870,-300.0,0.00022466,2]
[400698646,1767783040879,-2436.31932343,0.00022568,2]
[400698648,1767783040889,-409.7192866,0.00022893,2]
[400698650,1767783040899,-2436.31932343,0.00022899,2]
[400698652,1767783040908,-450.0,0.00023014,2]
[400698654,1767783040918,-2436.31932343,0.0002304,2]
[400698656,1767783040927,-221.31,0.000231,7]
[400698658,1767783040936,-2204.31,0.000231,14]
[400698660,1767783040945,-208.07,0.000231,7]
[400698662,1767783040954,-500.0,0.00023258,2]
[400698664,1767783040963,-2436.31932343,0.00023291,2]
[400698666,1767783040972,-191.37491647,0.00023383,11]
[400698668,1767783040981,-15924.46772426,0.000234,3]
[400698670,1767783040990,-1041.66666667,0.000234,3]
[400698672,1767783040999,-1000.0,0.00023401,10]
[400698674,1767783041009,-492.0,0.00023401,10]
[400698675,1767783041019,-2200.0,0.00023409,2]
[400698676,1767783041028,-307.6,0.00023418,2]
[400698677,1767783041038,-500.0,0.00023491,2]
[400698678,1767783041047,-500.0,0.00023492,2]
[400698679,1767783041056,-600.0,0.00023562,2]
[400698680,1767783041066,-500.0,0.00023597,2]
[400698681,1767783041076,-25963.54,0.000236,2]
[400698682,1767783041085,-2030.88012769,0.00023699,2]
[400698683,1767783041095,-151.0,0.00023699,2]
[400698684,1767783041104,-250.0,0.00023699,2]
[400698685,1767783041113,-1500.0,0.00023699,2]
[400698686,1767783041123,-500.0,0.00023699,2]
[400698687,1767783041135,-250.0,0.00023699,2]
[400698688,1767783041145,-1500.0,0.00023699,2]
[400698689,1767783041155,-250.0,0.00023699,2]
[400698690,1767783041166,-500.0,0.00023699,2]
[400698691,1767783041176,-1500.0,0.00023699,2]
[400698692,1767783041185,-250.0,0.00023699,2]
[400698693,1767783041196,-250.0,0.00023699,2]
[400698694,1767783041207,-500.0,0.00023699,2]
[400698695,1767783041217,-1500.0,0.00023699,2]
[400698696,1767783041226,-250.0,0.00023699,2]
[400698697,1767783041235,-250.0,0.00023699,2]
[400698698,1767783041245,-500.0,0.00023699,2]
[400698699,1767783041254,-1189.60316379,0.00023699,2]
[400698700,1767783041263,-250.0,0.00023699,2]
[400698701,1767783041272,-500.0,0.00023699,2]
[400698702,1767783041282,-250.0,0.00023699,2]
[400698703,1767783041291,-500.0,0.00023699,2]
[400698704,1767783041300,-250.0,0.00023699,2]
[400698705,1767783041309,-562.53594477,0.00023699,2]
[400698706,1767783041319,-250.83955872,0.00023699,2]
[400698707,1767783041328,-250.0,0.00023699,2]
[400698708,1767783041337,-302.29046048,0.00023699,2]
[400698709,1767783041346,-160.0,0.00023699,2]
[400698710,1767783041355,-160.0,0.00023699,2]
[400698711,1767783041365,-160.79089558,0.00023699,2]
[400698712,1767783041374,-514.84070869,0.00023699,2]
[400698713,1767783041383,-30000.0,0.00023699,2]
[400698714,1767783041393,-250.0,0.00023699,2]
[400698715,1767783041402,-250.0,0.00023699,2]
[400698716,1767783041411,-252.94566259,0.00023699,2]
[400698717,1767783041421,-151.0,0.00023699,2]
[400698718,1767783041430,-151.0,0.00023699,2]
[400698719,1767783041440,-157.242965,0.00023699,2]
[400698720,1767783041449,-2487.15318209,0.00023699,2]
[400698721,1767783041459,-283.8,0.00023753,2]
[400698722,1767783041468,-244.15251012,0.00023778,2]
[400698723,1767783041477,-201.41146489,0.00023778,2]
[400698724,1767783041486,-2200.0,0.00023804,2]
[400698725,1767783041496,-2436.31932343,0.0002381,2]
[400698726,1767783041505,-2200.0,0.00023911,2]
[400698727,1767783041514,-500.0,0.00023911,2]
[400698728,1767783041524,-244.15251012,0.00023921,9]
[400698729,1767783041534,-2436.31932343,0.00023955,2]
[400698730,1767783041543,-3123.63412849,0.00023979,2]
[400698731,1767783041553,-2200.0,0.00024061,2]
[400698732,1767783041562,-201.41146489,0.00024064,17]
[400698733,1767783041572,-244.15251012,0.00024064,17]
[400698734,1767783041581,-1751.06,0.000241,7]
[400698735,1767783041590,-750.0,0.0002411,2]
[400698736,1767783041600,-244.15251012,0.00024207,25]
[400698737,1767783041609,-533.88981491,0.00024247,2]
[400698738,1767783041618,-31110.0,0.00024247,2]
[400698739,1767783041627,-2579.17784983,0.00024247,2]
[400698740,1767783041636,-2200.0,0.00024339,2]
[400698741,1767783041646,-201.41146489,0.0002435,32]
[400698742,1767783041656,-244.15251012,0.0002435,32]
[400698743,1767783041665,-2436.31932343,0.00024368,2]
[400698745,1767783041675,-2819.0218693,0.00024449,2]
[400698746,1767783041684,-48412.1716654,0.00024449,2]
[400698747,1767783041693,-3422.910106,0.00024449,2]
[400698748,1767783041703,-195.3277306,0.00024449,2]
[400698750,1767783041712,-151.0,0.00024449,2]
[400698751,1767783041722,-151.0,0.00024449,2]
[400698752,1767783041732,-151.0,0.00024449,2]
[400698753,1767783041742,-151.0,0.00024449,2]
[400698754,1767783041752,-151.0,0.00024449,2]
[400698755,1767783041762,-2436.31932344,0.0002449,2]
[400698756,1767783041771,-244.15251012,0.00024493,40]
[400698757,1767783041782,-171.0,0.00024493,13]
[400698758,1767783041791,-191.37491647,0.00024554,13]
[400698759,1767783041801,-500.0,0.00024582,2]
[400698760,1767783041810,-500.0,0.00024628,2]
[400698761,1767783041820,-201.41146489,0.00024636,48]
[400698762,1767783041830,-244.15251012,0.00024636,48]
[400698763,1767783041839,-900.0,0.00024658,2]
[400698764,1767783041849,-500.0,0.00024658,2]
[400698765,1767783041859,-15924.41,0.000247,3]
[400698766,1767783041868,-5211.09454943,0.00024719,2]
[400698767,1767783041878,-2200.0,0.00024771,2]
[400698768,1767783041887,-244.15251012,0.00024779,56]
[400698769,1767783041896,-553.64373807,0.00024795,2]
[400698770,1767783041905,-32261.07,0.00024795,2]
[400698771,1767783041914,-2674.60743027,0.00024795,2]
[400698772,1767783041924,-500.0,0.00024795,2]
[400698773,1767783041934,-394802.915694,0.000248,2]
[400698774,1767783041943,-6506.02617545,0.000248,2]
[400698775,1767783041952,-151.0,0.000248,7]
[400698776,1767783041962,-151.0,0.000248,7]
[400698777,1767783041971,-151.0,0.000248,7]
[400698778,1767783041980,-151.0,0.000248,7]
[400698779,1767783041989,-151.0,0.000248,7]
[400698780,1767783041999,-2200.0,0.00024814,2]
[400698781,1767783042008,-2200.0,0.00024856,2]
[400698782,1767783042017,-1041.66666667,0.00024892,2]
[400698783,1767783042026,-448.53479797,0.00024893,2]
[400698784,1767783042036,-208.07,0.000249,7]
[400698785,1767783042045,-1041.66666667,0.000249,7]
[400698786,1767783042055,-225.672265,0.000249,7]
[400698787,1767783042064,-225.672265,0.000249,7]
[400698788,1767783042074,-225.672265,0.000249,7]
[400698789,1767783042083,-225.672265,0.000249,7]
[400698790,1767783042092,-151.0,0.000249,7]
[400698791,1767783042102,-247.352857,0.000249,7]
[400698792,1767783042112,-151.0,0.000249,7]
[400698793,1767783042121,-247.352857,0.000249,7]
[400698794,1767783042135,-247.352857,0.000249,7]
[400698795,1767783042144,-247.352857,0.000249,7]
[400698796,1767783042154,-151.0,0.000249,7]
[400698797,1767783042163,-618554.66508,0.000249,2]
[400698799,1767783042174,-634.815792,0.000249,7]
[400698800,1767783042184,-634.815792,0.000249,7]
[400698801,1767783042194,-634.815792,0.000249,7]
[400698802,1767783042208,-634.815792,0.000249,7]
[400698803,1767783042217,-151.0,0.000249,7]
[400698804,1767783042227,-151.0,0.000249,7]
[400698805,1767783042236,-151.0,0.000249,7]
[400698806,1767783042246,-151.0,0.000249,7]
[400698808,1767783042255,-151.0,0.000249,7]
[400698809,1767783042264,-164.004799,0.000249,7]
[400698812,1767783042421,-201.41146489,0.00024922,63]
[400698813,1767783042432,-244.15251012,0.00024922,63]
[400698814,1767783042442,-500.0,0.00024932,2]
[400698815,1767783042451,-307.6,0.00024978,2]
[400698816,1767783042461,-210.20532748,0.00024979,2]
[400698817,1767783042470,-2660.39322093,0.00025,2]
[400698818,1767783042480,-2673.38990505,0.00025,2]
[400698819,1767783042489,-10364.0,0.00025,2]
[400698820,1767783042498,-500.0,0.00025,2]
[400698821,1767783042508,-300.0,0.00025,30]
[400698823,1767783042517,-1363.86254436,0.00025,2]
[400698824,1767783042527,-759.01355597,0.00025,2]
[400698825,1767783042536,-221.31,0.00025,7]
[400698826,1767783042546,-2204.31,0.00025,14]
[400698827,1767783042555,-2200.0,0.00025046,7]
[400698828,1767783042564,-244.15251012,0.00025065,71]
[400698829,1767783042574,-500.0,0.00025069,2]
[400698830,1767783042584,-2200.0,0.0002518,7]
[400698831,1767783042594,-500.0,0.00025187,7]
[400698832,1767783042603,-579.85119945,0.000252,5]
[400698833,1767783042613,-250.0,0.00025205,2]
[400698834,1767783042622,-1181.07580657,0.00025205,2]
[400698835,1767783042634,-509.34709244,0.00025206,2]
[400698836,1767783042643,-201.41146489,0.00025208,79]
[400698837,1767783042653,-244.15251012,0.00025208,79]
[400698838,1767783042663,-574.12855637,0.00025343,2]
[400698839,1767783042673,-33454.72959,0.00025343,2]
[400698840,1767783042682,-2773.56790519,0.00025343,2]
[400698841,1767783042691,-244.15251012,0.00025351,86]
[400698842,1767783042700,-2200.0,0.00025414,7]
[400698843,1767783042709,-900.0,0.00025469,3]
[400698844,1767783042719,-201.41146489,0.00025494,94]
[400698845,1767783042728,-244.15251012,0.00025494,94]
[400698846,1767783042737,-1000.0,0.000255,2]
[400698847,1767783042746,-1751.06,0.000256,7]
[400698848,1767783042755,-500.0,0.00025636,7]
[400698849,1767783042764,-244.15251012,0.00025637,102]
[400698850,1767783042773,-500.0,0.0002564,7]
[400698851,1767783042783,-25963.54,0.000257,2]
[400698852,1767783042792,-191.37491647,0.00025724,14]
[400698853,1767783042802,-1000.0,0.00025742,10]
[400698854,1767783042811,-791.0,0.00025742,10]
[400698855,1767783042820,-350.0,0.00025753,2]
[400698856,1767783042830,-244.15251012,0.0002578,110]
[400698857,1767783042839,-595.37131296,0.00025891,2]
[400698858,1767783042848,-34692.55458483,0.00025891,2]
[400698859,1767783042858,-411.51874036,0.0002593,2]
[400698860,1767783042867,-1646.07496145,0.0002593,2]
[400698861,1767783042876,-17467.00445744,0.00026,2]
[400698862,1767783042885,-161.0,0.00026,5]
[400698863,1767783042897,-151.0,0.00026027,7]
[400698864,1767783042906,-151.0,0.00026027,7]
[400698865,1767783042915,-151.0,0.00026027,7]
[400698866,1767783042924,-151.0,0.00026027,7]
[400698867,1767783042934,-189.060693,0.00026027,7]
[400698868,1767783042943,-151.0,0.00026027,7]
[400698869,1767783042951,-151.0,0.00026027,7]
[400698870,1767783042961,-151.0,0.00026027,7]
[400698871,1767783042971,-151.0,0.00026027,7]
[400698872,1767783042980,-151.0,0.00026027,7]
[400698873,1767783042989,-167.701236,0.00026027,7]
[400698875,1767783042998,-151.0,0.00026027,7]
[400698877,1767783043008,-297.211329,0.00026027,7]
[400698880,1767783043017,-151.0,0.00026027,7]
[400698882,1767783043026,-151.0,0.00026027,7]
[400698884,1767783043035,-151.0,0.00026027,7]
[400698886,1767783043045,-151.0,0.00026027,7]
[400698887,1767783043054,-151.0,0.00026027,7]
[400698888,1767783043063,-151.0,0.00026027,7]
[400698889,1767783043073,-151.0,0.00026027,7]
[400698890,1767783043082,-292.141919,0.00026027,7]
[400698891,1767783043091,-151.0,0.00026027,7]
[400698892,1767783043101,-151.0,0.00026027,7]
[400698893,1767783043110,-151.0,0.00026027,7]
[400698894,1767783043119,-234.556182,0.00026027,7]
[400698895,1767783043135,-151.0,0.00026027,7]
[400698896,1767783043144,-151.0,0.00026027,7]
[400698897,1767783043154,-151.0,0.00026027,7]
[400698898,1767783043163,-183.522133,0.00026027,7]
[400698899,1767783043175,-151.0,0.00026027,7]
[400698900,1767783043184,-530.111159,0.00026027,7]
[400698901,1767783043193,-530.111159,0.00026027,7]
[400698902,1767783043202,-530.111159,0.00026027,7]
[400698903,1767783043211,-530.111159,0.00026027,7]
[400698904,1767783043221,-151.0,0.00026027,7]
[400698905,1767783043230,-151.0,0.00026027,7]
[400698906,1767783043239,-184.812283,0.00026027,7]
[400698907,1767783043249,-184.812283,0.00026027,7]
[400698908,1767783043258,-184.812283,0.00026027,7]
[400698909,1767783043267,-184.812283,0.00026027,7]
[400698910,1767783043276,-151.0,0.00026027,7]
[400698911,1767783043285,-1016.281206,0.00026027,7]
[400698912,1767783043295,-1016.281206,0.00026027,7]
[400698913,1767783043304,-1016.281206,0.00026027,7]
[400698914,1767783043313,-151.528573,0.00026027,7]
[400698915,1767783043322,-1016.281206,0.00026027,7]
[400698916,1767783043331,-151.0,0.00026027,7]
[400698917,1767783043341,-151.0,0.00026027,7]